[Event "The Elitserien 2024/25: round 1 - 3"]
[Site "Scandic Infra City, Kanalvagen 10, Upplands Vasby, Sweden"]
[Date "2024.10.06"]
[Round "3.16"]
[White "Naslund, Mikael"]
[Black "Bellon Lopez, Juan Manuel"]
[Result "0-1"]
[TimeControl "90 minutes for 40 moves + 30 minutes for the rest of the game + 30 seconds per move from move one."]
[WhiteTitle "FM"]
[BlackTitle "GM"]
[WhiteFideId "1708260"]
[BlackFideId "2200031"]
[WhiteElo "2107"]
[BlackElo "2266"]

1. d4 {[%clk 01:30:57]} {[%emt 00:00:03]} Nf6 {[%clk 01:30:49]} {[%emt
00:00:11]} 2. c4 {[%clk 01:31:12]} {[%emt 00:00:15]} a6 {[%clk 01:31:08]}
{[%emt 00:00:11]} 3. Nc3 {[%clk 01:30:47]} {[%emt 00:00:55]} c5 {[%clk
01:31:26]} {[%emt 00:00:13]} 4. d5 {[%clk 01:29:13]} {[%emt 00:02:03]} b5
{[%clk 01:31:47]} {[%emt 00:00:10]} 5. cxb5 {[%clk 01:29:02]} {[%emt 00:00:41]}
Qa5 {[%clk 01:31:43]} {[%emt 00:00:34]} 6. e3 {[%clk 01:28:10]} {[%emt
00:01:21]} axb5 {[%clk 01:23:09]} {[%emt 00:09:04]} 7. Bxb5 {[%clk 01:28:09]}
{[%emt 00:00:32]} Ba6 {[%clk 01:10:55]} {[%emt 00:12:44]} 8. Bxa6 {[%clk
01:24:43]} {[%emt 00:03:56]} Nxa6 {[%clk 01:11:10]} {[%emt 00:00:14]} 9. Nf3
{[%clk 01:24:41]} {[%emt 00:00:32]} Ne4 {[%clk 01:04:21]} {[%emt 00:07:20]} 10.
Bd2 {[%clk 01:19:22]} {[%emt 00:05:48]} Nxd2 {[%clk 01:04:36]} {[%emt
00:00:15]} 11. Qxd2 {[%clk 01:19:32]} {[%emt 00:00:20]} d6 {[%clk 01:03:32]}
{[%emt 00:01:34]} 12. O-O {[%clk 01:18:04]} {[%emt 00:01:58]} g6 {[%clk
01:03:59]} {[%emt 00:00:03]} 13. e4 {[%clk 01:10:34]} {[%emt 00:08:00]} Bg7
{[%clk 01:04:08]} {[%emt 00:00:21]} 14. Rfe1 {[%clk 01:09:20]} {[%emt
00:01:43]} O-O {[%clk 00:56:29]} {[%emt 00:08:10]} 15. e5 {[%clk 01:07:16]}
{[%emt 00:02:34]} Rab8 {[%clk 00:54:37]} {[%emt 00:02:21]} 16. Re4 {[%clk
01:02:34]} {[%emt 00:05:12]} Nc7 {[%clk 00:51:03]} {[%emt 00:04:05]} 17. h4
{[%clk 00:52:43]} {[%emt 00:10:21]} Rfd8 {[%clk 00:46:18]} {[%emt 00:05:14]} 18.
Rd1 {[%clk 00:43:06]} {[%emt 00:10:07]} Rb4 {[%clk 00:39:01]} {[%emt 00:07:48]}
19. exd6 {[%clk 00:33:16]} {[%emt 00:10:20]} exd6 {[%clk 00:38:41]} {[%emt
00:00:50]} 20. h5 {[%emt 00:04:48]} Rxe4 {[%clk 00:25:30]} {[%emt 00:13:39]} 21.
Nxe4 {[%clk 00:29:18]} {[%emt 00:00:12]} Qxd2 {[%clk 00:23:03]} {[%emt
00:02:58]} 22. Rxd2 {[%clk 00:29:05]} {[%emt 00:00:42]} f5 {[%clk 00:23:29]}
{[%emt 00:00:04]} 23. Nc3 {[%clk 00:24:19]} {[%emt 00:05:17]} Bf6 {[%clk
00:23:17]} {[%emt 00:00:41]} 24. hxg6 {[%clk 00:23:48]} {[%emt 00:01:02]} hxg6
{[%clk 00:23:18]} {[%emt 00:00:28]} 25. Kf1 {[%clk 00:21:19]} {[%emt 00:02:58]}
Re8 {[%clk 00:18:58]} {[%emt 00:04:51]} 26. Ng1 {[%clk 00:19:13]} {[%emt
00:02:36]} Kf7 {[%clk 00:18:52]} {[%emt 00:00:36]} 27. Nge2 {[%clk 00:17:44]}
{[%emt 00:01:59]} Rh8 {[%clk 00:19:05]} {[%emt 00:00:17]} 28. g3 {[%clk
00:14:42]} {[%emt 00:03:31]} g5 {[%emt 00:00:26]} 29. Kg2 {[%clk 00:14:39]}
{[%emt 00:00:28]} g4 {[%clk 00:15:50]} {[%emt 00:03:55]} 30. Nf4 {[%clk
00:12:43]} {[%emt 00:02:26]} Ra8 {[%clk 00:14:28]} {[%emt 00:01:53]} 31. Nfe2
{[%clk 00:12:07]} {[%emt 00:01:05]} Be5 {[%clk 00:13:39]} {[%emt 00:01:19]} 32.
f3 {[%clk 00:10:15]} {[%emt 00:02:22]} gxf3+ {[%clk 00:13:52]} {[%emt
00:00:17]} 33. Kxf3 {[%clk 00:10:42]} {[%emt 00:00:02]} Rg8 {[%clk 00:14:11]}
{[%emt 00:00:11]} 34. Nf4 {[%clk 00:10:47]} {[%emt 00:00:25]} Ra8 {[%clk
00:12:12]} {[%emt 00:02:29]} 35. Rh2 {[%clk 00:10:05]} {[%emt 00:01:12]} Bxc3
{[%clk 00:12:17]} {[%emt 00:00:26]} 36. bxc3 {[%clk 00:10:24]} {[%emt
00:00:11]} Nb5 {[%clk 00:12:41]} {[%emt 00:00:06]} 37. Rh5 {[%clk 00:06:58]}
{[%emt 00:03:55]} Kf6 {[%clk 00:12:36]} {[%emt 00:00:35]} 38. Rh6+ {[%clk
00:06:54]} {[%emt 00:00:35]} Kg7 {[%emt 00:00:37]} 39. Rh5 {[%clk 00:06:34]}
{[%emt 00:00:18]} Ra3 {[%emt 00:04:01]} 40. Ne6+ {[%clk 00:03:14]} {[%emt
00:00:07]} Kf6 {[%clk 00:12:39]} {[%emt 00:01:02]} 41. Rh6+ {[%clk 00:29:09]}
{[%emt 00:04:37]} Ke5 {[%clk 00:39:00]} {[%emt 00:04:09]} 42. Nf4 {[%clk
00:27:37]} {[%emt 00:02:02]} Nxc3 {[%clk 00:36:19]} {[%emt 00:03:11]} 43. Re6+
{[%clk 00:26:11]} {[%emt 00:01:56]} Kd4 {[%clk 00:35:48]} {[%emt 00:01:01]} 44.
Re3 {[%clk 00:25:45]} {[%emt 00:00:55]} Rxa2 {[%clk 00:33:51]} {[%emt
00:02:28]} 45. Rd3+ {[%clk 00:25:06]} {[%emt 00:01:09]} Kc4 {[%clk 00:33:35]}
{[%emt 00:00:44]} 46. Ke3 {[%clk 00:17:10]} {[%emt 00:08:26]} Rb2 {[%clk
00:33:25]} {[%emt 00:00:39]} 47. Kf3 {[%clk 00:16:45]} {[%emt 00:00:57]} Ne4
{[%clk 00:28:02]} {[%emt 00:05:53]} 48. Rd1 {[%clk 00:14:18]} {[%emt 00:02:56]}
Rb3+ {[%clk 00:27:25]} {[%emt 00:01:07]} 49. Kg2 {[%clk 00:14:14]} {[%emt
00:00:36]} Rxg3+ {[%clk 00:27:32]} {[%emt 00:00:23]} 50. Kh2 {[%clk 00:14:38]}
{[%emt 00:00:06]} Rf3 {[%clk 00:27:09]} {[%emt 00:00:51]} 51. Ng2 {[%clk
00:14:07]} {[%emt 00:01:02]} Rh3+ {[%clk 00:16:36]} {[%emt 00:11:04]} 52. Kxh3
{[%clk 00:13:49]} {[%emt 00:00:48]} Nf2+ {[%clk 00:17:02]} {[%emt 00:00:03]} 53.
Kg3 {[%clk 00:14:12]} {[%emt 00:00:08]} Nxd1 {[%clk 00:17:31]} {[%emt
00:00:01]} 54. Kf4 {[%clk 00:14:27]} {[%emt 00:00:14]} Kxd5 {[%clk 00:17:51]}
{[%emt 00:00:11]} 55. Kxf5 {[%clk 00:14:52]} {[%emt 00:00:05]} c4 {[%clk
00:17:20]} {[%emt 00:01:01]} 56. Nf4+ {[%clk 00:15:10]} {[%emt 00:00:12]} Kc5
{[%clk 00:16:48]} {[%emt 00:01:01]} 57. Ke4 {[%clk 00:15:27]} {[%emt 00:00:14]}
Nc3+ {[%clk 00:16:53]} {[%emt 00:00:25]} 58. Kf3 {[%clk 00:15:51]} {[%emt
00:00:06]} Kd4 {[%clk 00:16:42]} {[%emt 00:00:40]} 59. Kf2 {[%clk 00:15:48]}
{[%emt 00:00:33]} d5 {[%clk 00:16:24]} {[%emt 00:00:48]} 60. Ne6+ {[%clk
00:15:19]} {[%emt 00:00:59]} Kd3 {[%clk 00:16:36]} {[%emt 00:00:18]} 61. Nf4+
{[%clk 00:14:51]} {[%emt 00:00:59]} Kd2 {[%clk 00:15:51]} {[%emt 00:01:13]} 62.
Ng2 {[%clk 00:15:01]} {[%emt 00:00:21]} Ne4 {[%clk 00:14:29]} {[%emt 00:01:53]}
63. Kf3 {[%clk 00:15:16]} {[%emt 00:00:15]} c3 {[%clk 00:14:36]} {[%emt
00:00:22]} 0-1

[Event "The Elitserien 2024/25: round 1 - 3"]
[Site "Scandic Infra City, Kanalvagen 10, Upplands Vasby, Sweden"]
[Date "2024.10.06"]
[Round "3.17"]
[White "Kucuksari, Kaan"]
[Black "Lokander, Martin"]
[Result "1-0"]
[TimeControl "90 minutes for 40 moves + 30 minutes for the rest of the game + 30 seconds per move from move one."]
[WhiteTitle "IM"]
[BlackTitle "IM"]
[WhiteFideId "6380166"]
[BlackFideId "1709569"]
[WhiteElo "2455"]
[BlackElo "2469"]

1. d4 {[%clk 01:30:58]} {[%emt 00:00:02]} Nf6 {[%clk 01:30:29]} {[%emt
00:00:30]} 2. c4 {[%clk 01:31:19]} {[%emt 00:00:10]} c5 {[%clk 01:29:42]}
{[%emt 00:01:17]} 3. d5 {[%clk 01:31:43]} {[%emt 00:00:06]} g6 {[%clk
01:30:06]} {[%emt 00:00:06]} 4. Nc3 {[%clk 01:32:02]} {[%emt 00:00:11]} Bg7
{[%clk 01:30:26]} {[%emt 00:00:10]} 5. g3 {[%clk 01:32:18]} {[%emt 00:00:15]}
d6 {[%clk 01:30:42]} {[%emt 00:00:14]} 6. Nf3 {[%clk 01:32:37]} {[%emt
00:00:11]} O-O {[%clk 01:30:42]} {[%emt 00:00:29]} 7. Bg2 {[%clk 01:33:03]}
{[%emt 00:00:04]} e6 {[%clk 01:31:07]} {[%emt 00:00:05]} 8. O-O {[%clk
01:33:18]} {[%emt 00:00:15]} exd5 {[%clk 01:31:32]} {[%emt 00:00:06]} 9. cxd5
{[%clk 01:33:42]} {[%emt 00:00:05]} Re8 {[%clk 01:28:10]} {[%emt 00:03:52]} 10.
Bf4 {[%clk 01:34:07]} {[%emt 00:00:05]} h6 {[%clk 01:27:56]} {[%emt 00:00:44]}
11. Qc1 {[%clk 01:33:36]} {[%emt 00:01:00]} g5 {[%clk 01:25:12]} {[%emt
00:03:14]} 12. Be3 {[%clk 01:34:03]} {[%emt 00:00:04]} b5 {[%clk 01:22:01]}
{[%emt 00:03:41]} 13. Nxb5 {[%clk 01:27:45]} {[%emt 00:06:48]} Ba6 {[%clk
01:02:20]} {[%emt 00:20:11]} 14. a4 {[%clk 01:18:18]} {[%emt 00:09:55]} Ne4
{[%clk 00:53:39]} {[%emt 00:09:12]} 15. h4 {[%clk 00:59:32]} {[%emt 00:19:17]}
Bxb5 {[%clk 00:40:09]} {[%emt 00:13:59]} 16. axb5 {[%clk 00:59:58]} {[%emt
00:00:03]} g4 {[%clk 00:39:41]} {[%emt 00:00:59]} 17. Nh2 {[%clk 00:59:25]}
{[%emt 00:01:03]} h5 {[%clk 00:37:55]} {[%emt 00:02:16]} 18. Ra4 {[%clk
00:46:21]} {[%emt 00:13:33]} f5 {[%clk 00:36:50]} {[%emt 00:01:35]} 19. Qc2
{[%clk 00:40:07]} {[%emt 00:06:45]} Nd7 {[%clk 00:31:08]} {[%emt 00:06:12]} 20.
Bxe4 {[%clk 00:38:27]} {[%emt 00:02:09]} fxe4 {[%clk 00:31:32]} {[%emt
00:00:06]} 21. Rxe4 {[%clk 00:38:33]} {[%emt 00:00:23]} Nf6 {[%clk 00:29:48]}
{[%emt 00:02:14]} 22. Rxe8+ {[%clk 00:21:40]} {[%emt 00:17:24]} Qxe8 {[%clk
00:27:06]} {[%emt 00:03:12]} 23. Bf4 {[%clk 00:21:40]} {[%emt 00:00:29]} Qxb5
{[%clk 00:25:40]} {[%emt 00:01:57]} 24. Bxd6 {[%clk 00:20:13]} {[%emt
00:01:57]} Re8 {[%clk 00:25:36]} {[%emt 00:00:33]} 25. Qxc5 {[%clk 00:18:20]}
{[%emt 00:02:24]} Qxe2 {[%clk 00:25:47]} {[%emt 00:00:18]} 26. Bf4 {[%clk
00:14:58]} {[%emt 00:03:53]} Qd3 {[%clk 00:22:57]} {[%emt 00:03:20]} 27. d6
{[%clk 00:15:04]} {[%emt 00:00:24]} Re2 {[%clk 00:20:53]} {[%emt 00:02:33]} 28.
Qxa7 {[%clk 00:10:43]} {[%emt 00:04:52]} Rxb2 {[%clk 00:20:18]} {[%emt
00:01:04]} 29. Re1 {[%clk 00:06:17]} {[%emt 00:04:57]} Re2 {[%clk 00:16:51]}
{[%emt 00:03:57]} 30. Rxe2 {[%clk 00:05:01]} {[%emt 00:01:46]} Qxe2 {[%clk
00:17:08]} {[%emt 00:00:12]} 31. Nf1 {[%clk 00:05:24]} {[%emt 00:00:08]} Qd3
{[%clk 00:15:13]} {[%emt 00:02:24]} 32. Be5 {[%clk 00:04:35]} {[%emt 00:01:18]}
Qd5 {[%clk 00:14:31]} {[%emt 00:01:13]} 33. Qe7 {[%clk 00:04:23]} {[%emt
00:00:43]} Qf7 {[%clk 00:14:04]} {[%emt 00:00:56]} 34. Bxf6 {[%clk 00:03:31]}
{[%emt 00:01:21]} Bxf6 {[%clk 00:14:18]} {[%emt 00:00:16]} 35. Qe4 {[%clk
00:03:57]} {[%emt 00:00:05]} Bd8 {[%clk 00:13:12]} {[%emt 00:01:37]} 36. Ne3
{[%clk 00:01:57]} {[%emt 00:02:29]} Bb6 {[%clk 00:13:33]} {[%emt 00:00:08]} 37.
Nf5 {[%clk 00:02:15]} {[%emt 00:00:13]} Qa2 {[%clk 00:13:38]} {[%emt 00:00:24]}
38. Qe8+ {[%clk 00:02:33]} {[%emt 00:00:11]} Kh7 {[%clk 00:14:00]} {[%emt
00:00:09]} 39. Qxh5+ {[%clk 00:02:11]} 1-0

[Event "The Elitserien 2024/25: round 1 - 3"]
[Site "Scandic Infra City, Kanalvagen 10, Upplands Vasby, Sweden"]
[Date "2024.10.06"]
[Round "3.18"]
[White "Georgiadis, Nico"]
[Black "Ernst, Sipke"]
[Result "0-1"]
[TimeControl "90 minutes for 40 moves + 30 minutes for the rest of the game + 30 seconds per move from move one."]
[WhiteTitle "GM"]
[BlackTitle "GM"]
[WhiteFideId "1300113"]
[BlackFideId "1004689"]
[WhiteElo "2510"]
[BlackElo "2509"]

1. e4 {[%clk 01:30:56]} {[%emt 00:00:03]} e5 {[%clk 01:30:53]} {[%emt
00:00:07]} 2. Nf3 {[%clk 01:31:19]} {[%emt 00:00:07]} Nc6 {[%clk 01:31:06]}
{[%emt 00:00:18]} 3. Bb5 {[%clk 01:31:41]} {[%emt 00:00:09]} a6 {[%clk
01:31:32]} {[%emt 00:00:03]} 4. Ba4 {[%clk 01:32:04]} {[%emt 00:00:06]} Nf6
{[%clk 01:31:40]} {[%emt 00:00:24]} 5. O-O {[%clk 01:32:26]} {[%emt 00:00:07]}
Nxe4 {[%clk 01:31:40]} {[%emt 00:00:30]} 6. d4 {[%clk 01:32:20]} {[%emt
00:00:35]} b5 {[%clk 01:32:07]} {[%emt 00:00:03]} 7. Bb3 {[%clk 01:32:42]}
{[%emt 00:00:09]} d5 {[%clk 01:32:35]} {[%emt 00:00:01]} 8. dxe5 {[%clk
01:33:01]} {[%emt 00:00:11]} Be6 {[%clk 01:33:02]} {[%emt 00:00:02]} 9. Be3
{[%clk 01:33:23]} {[%emt 00:00:09]} Be7 {[%clk 01:33:05]} {[%emt 00:00:26]} 10.
c3 {[%clk 01:31:53]} {[%emt 00:01:59]} O-O {[%clk 01:33:30]} {[%emt 00:00:06]}
11. Nbd2 {[%clk 01:30:41]} {[%emt 00:01:42]} Qd7 {[%clk 01:24:54]} {[%emt
00:09:06]} 12. Bc2 {[%clk 01:03:43]} {[%emt 00:27:26]} f5 {[%clk 01:25:17]}
{[%emt 00:00:09]} 13. exf6 {[%clk 00:56:53]} {[%emt 00:07:21]} Nxf6 {[%clk
01:25:41]} {[%emt 00:00:06]} 14. h3 {[%clk 00:56:37]} {[%emt 00:00:46]} Bd6
{[%clk 01:18:11]} {[%emt 00:07:59]} 15. Ng5 {[%clk 00:49:50]} {[%emt 00:07:17]}
Bf5 {[%clk 01:18:32]} {[%emt 00:00:09]} 16. Qb1 {[%clk 00:47:25]} {[%emt
00:02:55]} Bxc2 {[%clk 01:17:29]} {[%emt 00:01:32]} 17. Qxc2 {[%clk 00:46:33]}
{[%emt 00:01:23]} Rae8 {[%clk 01:11:00]} {[%emt 00:06:58]} 18. Rfe1 {[%clk
00:40:42]} {[%emt 00:06:22]} Ne5 {[%clk 01:06:17]} {[%emt 00:05:12]} 19. Bd4
{[%clk 00:35:42]} {[%emt 00:05:31]} c5 {[%clk 00:58:29]} {[%emt 00:08:18]} 20.
Bxe5 {[%clk 00:35:57]} {[%emt 00:00:15]} Bxe5 {[%clk 00:58:37]} {[%emt
00:00:22]} 21. Ngf3 {[%clk 00:35:15]} {[%emt 00:01:11]} Bb8 {[%clk 00:47:08]}
{[%emt 00:11:59]} 22. Rxe8 {[%clk 00:35:05]} {[%emt 00:00:42]} Rxe8 {[%clk
00:47:28]} {[%emt 00:00:10]} 23. Re1 {[%clk 00:35:28]} {[%emt 00:00:06]} Rxe1+
{[%clk 00:47:23]} {[%emt 00:00:35]} 24. Nxe1 {[%clk 00:35:53]} {[%emt
00:00:05]} c4 {[%emt 00:07:28]} 25. Nef3 {[%clk 00:31:12]} Ba7 {[%emt
00:18:02]} 26. Qd1 {[%clk 00:16:16]} Qe6 {[%clk 00:33:38]} {[%emt 00:10:21]} 27.
Kf1 {[%clk 00:11:35]} {[%emt 00:05:12]} Qf5 {[%clk 00:27:48]} {[%emt 00:06:21]}
28. Kg1 {[%clk 00:10:58]} {[%emt 00:01:08]} h6 {[%clk 00:23:36]} {[%emt
00:04:42]} 29. Nf1 {[%clk 00:09:58]} {[%emt 00:01:28]} Qf4 {[%clk 00:19:58]}
{[%emt 00:04:07]} 30. Qe2 {[%clk 00:06:10]} {[%emt 00:04:18]} Qe4 {[%clk
00:19:00]} {[%emt 00:01:29]} 31. Qxe4 {[%clk 00:03:44]} {[%emt 00:02:57]} Nxe4
{[%clk 00:19:06]} {[%emt 00:00:24]} 32. Ne3 {[%clk 00:04:10]} {[%emt 00:00:04]}
Bxe3 {[%clk 00:16:34]} {[%emt 00:03:02]} 33. fxe3 {[%clk 00:04:37]} {[%emt
00:00:02]} Nc5 {[%clk 00:16:52]} {[%emt 00:00:13]} 34. Nd4 {[%clk 00:04:10]}
{[%emt 00:00:57]} Na4 {[%clk 00:16:08]} {[%emt 00:01:12]} 35. Nc6 {[%clk
00:04:34]} {[%emt 00:00:06]} Nxb2 {[%clk 00:09:39]} {[%emt 00:07:00]} 36. Ne7+
{[%clk 00:04:45]} {[%emt 00:00:20]} Kf7 {[%clk 00:10:05]} {[%emt 00:00:03]} 37.
Nxd5 {[%clk 00:05:10]} {[%emt 00:00:04]} Ke6 {[%clk 00:06:53]} {[%emt
00:03:44]} 38. Nc7+ {[%clk 00:05:23]} {[%emt 00:00:17]} Kd6 {[%clk 00:07:18]}
{[%emt 00:00:05]} 39. Nxa6 {[%clk 00:04:53]} {[%emt 00:00:59]} Nd1 {[%clk
00:07:43]} {[%emt 00:00:05]} 40. Nb4 {[%clk 00:03:48]} {[%emt 00:01:35]} Nxe3
{[%clk 00:05:51]} {[%emt 00:02:22]} 41. a3 {[%clk 00:03:47]} {[%emt 00:00:31]}
Nd1 {[%clk 00:04:39]} {[%emt 00:01:42]} 42. Na2 {[%clk 00:02:21]} {[%emt
00:01:56]} Ke5 {[%clk 00:04:42]} {[%emt 00:00:28]} 43. Kf1 {[%clk 00:02:24]}
{[%emt 00:00:27]} Ne3+ {[%clk 00:02:29]} {[%emt 00:02:43]} 44. Kf2 {[%clk
00:02:19]} {[%emt 00:00:34]} Ke4 {[%clk 00:02:53]} {[%emt 00:00:07]} 0-1

[Event "The Elitserien 2024/25: round 1 - 3"]
[Site "Scandic Infra City, Kanalvagen 10, Upplands Vasby, Sweden"]
[Date "2024.10.06"]
[Round "3.19"]
[White "Storme, Isak"]
[Black "Olund, Joar"]
[Result "1-0"]
[TimeControl "90 minutes for 40 moves + 30 minutes for the rest of the game + 30 seconds per move from move one."]
[WhiteTitle "IM"]
[BlackTitle "FM"]
[WhiteFideId "1728113"]
[BlackFideId "1714848"]
[WhiteElo "2447"]
[BlackElo "2368"]

1. d4 {[%clk 01:30:57]} {[%emt 00:00:02]} d5 {[%clk 01:18:18]} {[%emt
00:12:43]} 2. c4 {[%clk 01:31:07]} {[%emt 00:00:20]} dxc4 {[%clk 01:18:23]}
{[%emt 00:00:25]} 3. Nf3 {[%clk 01:31:08]} {[%emt 00:00:30]} Nf6 {[%clk
01:18:48]} {[%emt 00:00:04]} 4. e3 {[%clk 01:31:24]} {[%emt 00:00:15]} e6
{[%clk 01:19:14]} {[%emt 00:00:05]} 5. Bxc4 {[%clk 01:31:31]} {[%emt 00:00:20]}
c5 {[%clk 01:19:40]} {[%emt 00:00:05]} 6. Nc3 {[%clk 01:31:40]} {[%emt
00:00:21]} a6 {[%clk 01:19:52]} {[%emt 00:00:20]} 7. e4 {[%clk 01:31:29]}
{[%emt 00:00:40]} b5 {[%clk 01:17:26]} {[%emt 00:02:57]} 8. Bb3 {[%clk
01:31:49]} {[%emt 00:00:09]} cxd4 {[%clk 01:11:27]} {[%emt 00:06:29]} 9. Nxd4
{[%clk 01:32:09]} {[%emt 00:00:10]} Bb7 {[%clk 01:11:50]} {[%emt 00:00:07]} 10.
e5 {[%clk 01:29:12]} {[%emt 00:03:26]} Nd5 {[%clk 01:10:23]} {[%emt 00:01:57]}
11. Nxd5 {[%clk 01:26:20]} {[%emt 00:03:22]} Bxd5 {[%clk 01:10:38]} {[%emt
00:00:16]} 12. O-O {[%clk 01:25:33]} {[%emt 00:01:15]} Nc6 {[%clk 01:03:17]}
{[%emt 00:07:51]} 13. Bxd5 {[%clk 01:08:25]} {[%emt 00:17:38]} Qxd5 {[%clk
01:01:21]} {[%emt 00:02:27]} 14. Nxc6 {[%clk 01:08:43]} {[%emt 00:00:11]} Qxc6
{[%clk 01:01:45]} {[%emt 00:00:06]} 15. Bg5 {[%clk 01:09:04]} {[%emt 00:00:09]}
h6 {[%clk 00:49:01]} {[%emt 00:13:16]} 16. Rc1 {[%emt 00:01:40]} Qb7 {[%clk
00:48:20]} {[%emt 00:00:03]} 17. Be3 {[%clk 01:07:18]} {[%emt 00:02:12]} Be7
{[%clk 00:42:17]} {[%emt 00:06:32]} 18. Qg4 {[%clk 00:56:45]} {[%emt 00:11:04]}
g6 {[%clk 00:42:24]} {[%emt 00:00:23]} 19. Rfd1 {[%clk 00:53:37]} {[%emt
00:03:37]} h5 {[%clk 00:41:19]} {[%emt 00:01:36]} 20. Qf3 {[%clk 00:52:49]}
{[%emt 00:01:18]} Qxf3 {[%clk 00:41:29]} {[%emt 00:00:21]} 21. gxf3 {[%clk
00:53:12]} {[%emt 00:00:07]} Rd8 {[%clk 00:38:20]} {[%emt 00:03:39]} 22. Rxd8+
{[%clk 00:50:08]} {[%emt 00:03:34]} Bxd8 {[%clk 00:38:01]} {[%emt 00:00:50]} 23.
Rc8 {[%clk 00:48:55]} {[%emt 00:01:43]} Kd7 {[%clk 00:33:27]} {[%emt 00:05:05]}
24. Ra8 {[%clk 00:48:42]} {[%emt 00:00:41]} Re8 {[%clk 00:26:10]} {[%emt
00:07:48]} 25. Rxa6 {[%clk 00:47:25]} {[%emt 00:01:47]} Bc7 {[%clk 00:26:24]}
{[%emt 00:00:17]} 26. f4 {[%clk 00:46:37]} {[%emt 00:01:16]} Rb8 {[%clk
00:25:46]} {[%emt 00:01:10]} 27. Kf1 {[%clk 00:39:22]} {[%emt 00:07:44]} g5
{[%clk 00:23:20]} {[%emt 00:02:57]} 28. fxg5 {[%clk 00:34:00]} {[%emt
00:05:52]} Bxe5 {[%clk 00:23:33]} {[%emt 00:00:17]} 29. Ra7+ {[%clk 00:34:10]}
{[%emt 00:00:20]} Ke8 {[%clk 00:23:44]} {[%emt 00:00:19]} 30. Bc5 {[%clk
00:33:28]} {[%emt 00:01:12]} Rc8 {[%clk 00:23:59]} {[%emt 00:00:16]} 31. b4
{[%clk 00:32:54]} {[%emt 00:01:02]} Rc7 {[%clk 00:23:37]} {[%emt 00:00:53]} 32.
Ra5 {[%clk 00:22:14]} {[%emt 00:11:09]} Rb7 {[%clk 00:22:31]} {[%emt 00:01:37]}
33. Kg2 {[%clk 00:21:23]} {[%emt 00:01:19]} Bc7 {[%clk 00:16:20]} {[%emt
00:06:43]} 34. Ra8+ {[%clk 00:18:38]} {[%emt 00:03:14]} Bd8 {[%clk 00:08:26]}
{[%emt 00:08:23]} 35. Kg3 {[%clk 00:18:23]} {[%emt 00:00:46]} Kd7 {[%clk
00:07:38]} {[%emt 00:01:18]} 36. Kh4 {[%clk 00:18:26]} {[%emt 00:00:26]} Bb6
{[%clk 00:06:56]} {[%emt 00:01:15]} 37. Bxb6 {[%clk 00:16:22]} {[%emt
00:02:33]} Rxb6 {[%clk 00:06:53]} {[%emt 00:00:32]} 38. Kxh5 {[%clk 00:13:53]}
{[%emt 00:02:57]} Rd6 {[%clk 00:06:58]} {[%emt 00:00:27]} 39. h4 {[%clk
00:12:05]} {[%emt 00:02:17]} Rd2 {[%clk 00:05:54]} {[%emt 00:01:36]} 40. Ra7+
{[%clk 00:04:03]} {[%emt 00:08:31]} Ke8 {[%clk 00:05:39]} {[%emt 00:00:44]} 41.
Kh6 {[%clk 00:27:36]} {[%emt 00:06:56]} Rxf2 {[%clk 00:34:00]} {[%emt
00:02:11]} 42. h5 {[%clk 00:27:56]} {[%emt 00:00:10]} e5 {[%clk 00:29:19]}
{[%emt 00:05:11]} 43. g6 {[%clk 00:25:53]} {[%emt 00:02:32]} fxg6 {[%clk
00:28:22]} {[%emt 00:01:28]} 44. hxg6 {[%clk 00:26:14]} {[%emt 00:00:09]} Kf8
{[%clk 00:24:38]} {[%emt 00:04:13]} 1-0